fUST/lending_fUST_20240226
["ID","MTS","AMOUNT","RATE_DAILY","PERIOD"]
[315177397,1708903846967,-500.0,0.00019726,2]
[315177398,1708903846976,-151.0,0.00019726,2]
[315177399,1708903846985,-500.0,0.00019726,2]
[315177400,1708903846994,-500.0,0.00019726,2]
[315177401,1708903847003,-266.57275156,0.00019726,2]
[315177402,1708903847012,-500.0,0.00019726,2]
[315177403,1708903847021,-596.37,0.00019726,2]
[315177404,1708903847030,-500.0,0.00019726,2]
[315177405,1708903847040,-1425.67,0.00019726,2]
[315177406,1708903847050,-500.0,0.00019726,2]
[315177407,1708903847059,-500.0,0.00019726,2]
[315177408,1708903847068,-722.27,0.00019726,2]
[315177409,1708903847077,-500.0,0.00019726,2]
[315177410,1708903847086,-202.3141113,0.00019726,2]
[315177411,1708903847095,-500.0,0.00019726,2]
[315177412,1708903847104,-500.0,0.00019726,2]
[315177413,1708903847113,-500.0,0.00019726,2]
[315177414,1708903847122,-500.0,0.00019726,2]
[315177415,1708903847132,-562.13299876,0.00019726,2]
[315177416,1708903847141,-500.0,0.00019726,2]
[315177417,1708903847151,-500.0,0.00019726,2]
[315177418,1708903847160,-500.0,0.00019726,2]
[315177419,1708903847169,-1004.11866743,0.00019726,2]
[315177420,1708903847178,-500.0,0.00019726,2]
[315177421,1708903847187,-500.0,0.00019726,2]
[315177422,1708903847196,-2074.3,0.00019726,2]
[315177423,1708903847206,-500.0,0.00019726,2]
[315177424,1708903847215,-500.0,0.00019726,2]
[315177425,1708903847224,-500.0,0.00019726,2]
[315177426,1708903847233,-500.0,0.00019726,2]
[315177427,1708903847243,-500.0,0.00019726,2]
[315177428,1708903847252,-500.0,0.00019726,2]
[315177429,1708903847261,-1643.7,0.00019726,2]
[315177430,1708903847271,-500.0,0.00019726,2]
[315177431,1708903847280,-500.0,0.00019726,2]
[315177432,1708903847291,-500.0,0.00019726,2]
[315177433,1708903847300,-500.0,0.00019726,2]
[315177434,1708903847312,-500.0,0.00019726,2]
[315177435,1708903847321,-500.0,0.00019726,2]
[315177436,1708903847330,-500.0,0.00019726,2]
[315177437,1708903847339,-500.0,0.00019726,2]
[315177438,1708903847348,-500.0,0.00019726,2]
[315177439,1708903847358,-500.0,0.00019726,2]
[315177440,1708903847366,-645.63309768,0.00019726,2]
[315177441,1708903847375,-500.0,0.00019726,2]
[315177442,1708903847470,-500.0,0.00019726,2]
[315177443,1708903847482,-500.0,0.00019726,2]
[315177444,1708903847493,-500.0,0.00019726,2]
[315177445,1708903847502,-500.0,0.00019726,2]
[315177446,1708903847511,-820.72,0.00019726,2]
[315177447,1708903847520,-935.75,0.00019726,2]
[315177448,1708903847530,-500.0,0.00019726,2]
[315177449,1708903847541,-500.0,0.00019726,2]
[315177450,1708903847551,-500.0,0.00019726,2]
[315177451,1708903847560,-500.0,0.00019726,2]
[315177452,1708903847569,-500.0,0.00019726,2]
[315177453,1708903847578,-500.0,0.00019726,2]
[315177454,1708903847587,-500.0,0.00019726,2]
[315177455,1708903847596,-500.0,0.00019726,2]
[315177456,1708903847605,-500.0,0.00019726,2]
[315177457,1708903847615,-500.39052972,0.00019726,2]
[315177458,1708903847624,-500.0,0.00019726,2]
[315177459,1708903847642,-500.0,0.00019726,2]
[315177460,1708903847668,-2323.85,0.00019726,2]
[315177461,1708903847678,-720.77,0.00019726,2]
[315177462,1708903847687,-500.0,0.00019726,2]
[315177463,1708903847696,-500.0,0.00019726,2]
[315177464,1708903847706,-500.0,0.00019726,2]
[315177465,1708903847715,-500.0,0.00019726,2]
[315177466,1708903847724,-500.0,0.00019726,2]
[315177467,1708903847733,-500.0,0.00019726,2]
[315177468,1708903847742,-500.0,0.00019726,2]
[315177469,1708903847753,-500.51240709,0.00019726,2]
[315177470,1708903847762,-500.0,0.00019726,2]
[315177471,1708903847772,-500.0,0.00019726,2]
[315177472,1708903847781,-500.0,0.00019726,2]
[315177473,1708903847793,-500.0,0.00019726,2]
[315177474,1708903847803,-497.77855234,0.00019726,2]
[315177475,1708903847813,-500.0,0.00019726,2]
[315177476,1708903847822,-791.48,0.00019726,2]
[315177477,1708903847831,-500.0,0.00019726,2]
[315177478,1708903847840,-11294.05,0.00019726,2]
[315177479,1708903847850,-500.0,0.00019726,2]
[315177480,1708903847859,-500.0,0.00019726,2]
[315177481,1708903847869,-1798.93,0.00019726,2]
[315177482,1708903847878,-2773.39,0.00019726,2]
[315177483,1708903847887,-3995.5,0.00019726,2]
[315177484,1708903847896,-500.0,0.00019726,2]
[315177485,1708903847905,-500.0,0.00019726,2]
[315177486,1708903847914,-500.0,0.00019726,2]
[315177487,1708903847923,-248.03889364,0.00019726,2]
[315177488,1708903847932,-500.0,0.00019726,2]
[315177489,1708903847941,-500.0,0.00019726,2]
[315177490,1708903847950,-485.95883318,0.00019726,2]
[315177491,1708903847959,-580.33377314,0.00019726,2]
[315177492,1708903847969,-2523.02,0.00019726,2]
[315177493,1708903847978,-500.0,0.00019726,2]
[315177494,1708903847987,-500.0,0.00019726,2]
[315177495,1708903847996,-1000.0,0.00019726,2]
[315177496,1708903848005,-500.0,0.00019726,2]
[315177497,1708903848014,-500.0,0.00019726,2]
[315177498,1708903848024,-1873.66,0.00019726,2]
[315177499,1708903848034,-500.0,0.00019726,2]
[315177500,1708903848046,-500.0,0.00019726,2]
[315177501,1708903848054,-500.0,0.00019726,2]
[315177502,1708903848063,-1998.21,0.00019726,2]
[315177503,1708903848072,-500.0,0.00019726,2]
[315177504,1708903848081,-500.0,0.00019726,2]
[315177505,1708903848090,-500.0,0.00019726,2]
[315177506,1708903848099,-500.0,0.00019726,2]
[315177507,1708903848107,-500.0,0.00019726,2]
[315177508,1708903848116,-20113.34,0.00019726,2]
[315177509,1708903848125,-500.0,0.00019726,2]
[315177510,1708903848134,-500.0,0.00019726,2]
[315177511,1708903848143,-500.0,0.00019726,2]
[315177512,1708903848153,-1308.09,0.00019726,2]
[315177513,1708903848162,-500.0,0.00019726,2]
[315177514,1708903848171,-500.49581509,0.00019726,2]
[315177515,1708903848181,-500.0,0.00019726,2]
[315177516,1708903848190,-502.19470919,0.00019726,2]
[315177517,1708903848199,-500.0,0.00019726,2]
[315177518,1708903848208,-500.0,0.00019726,2]
[315177519,1708903848218,-500.0,0.00019726,2]
[315177520,1708903848227,-500.0,0.00019726,2]
[315177521,1708903848236,-500.0,0.00019726,2]
[315177522,1708903848245,-500.0,0.00019726,2]
[315177523,1708903848254,-1926.14,0.00019726,2]
[315177524,1708903848264,-1600.96,0.00019726,2]
[315177525,1708903848273,-500.0,0.00019726,2]
[315177526,1708903848283,-500.0,0.00019726,2]
[315177527,1708903848293,-500.0,0.00019726,2]
[315177528,1708903848302,-500.0,0.00019726,2]
[315177529,1708903848311,-7463.7,0.00019726,2]
[315177530,1708903848320,-500.0,0.00019726,2]
[315177531,1708903848330,-500.0,0.00019726,2]
[315177532,1708903848339,-500.0,0.00019726,2]
[315177533,1708903848348,-586.26,0.00019726,2]
[315177534,1708903848357,-500.0,0.00019726,2]
[315177535,1708903848366,-500.0,0.00019726,2]
[315177536,1708903848375,-10500.83,0.00019726,2]
[315177537,1708903848384,-500.0,0.00019726,2]
[315177538,1708903848394,-500.0,0.00019726,2]
[315177539,1708903848405,-20464.22,0.00019726,2]
[315177540,1708903848414,-500.0,0.00019726,2]
[315177541,1708903848423,-678.24,0.00019726,2]
[315177542,1708903848433,-500.0,0.00019726,2]
[315177543,1708903848442,-500.0,0.00019726,2]
[315177544,1708903848451,-500.0,0.00019726,2]
[315177545,1708903848460,-2222.16,0.00019726,2]
[315177546,1708903848469,-500.0,0.00019726,2]
[315177547,1708903848489,-2844.22,0.00019726,2]
[315177548,1708903848501,-500.0,0.00019726,2]
[315177549,1708903848510,-500.6752788,0.00019726,2]
[315177550,1708903848521,-500.0,0.00019726,2]
[315177551,1708903848530,-500.0,0.00019726,2]
[315177552,1708903848542,-4188.05,0.00019726,2]
[315177553,1708903848552,-500.0,0.00019726,2]
[315177554,1708903848561,-698.4,0.00019726,2]
[315177555,1708903848571,-500.0,0.00019726,2]
[315177556,1708903848581,-405.33060812,0.00019726,2]
[315177557,1708903848590,-589.92596995,0.00019726,2]
[315177558,1708903848600,-2819.16,0.00019726,2]
[315177559,1708903848610,-500.0,0.00019726,2]
[315177560,1708903848620,-500.0,0.00019726,2]
[315177561,1708903848629,-1123.66,0.00019726,2]
[315177562,1708903848638,-3026.12,0.00019726,2]
[315177563,1708903848648,-500.0,0.00019726,2]
[315177564,1708903848657,-1434.89,0.00019726,2]
[315177565,1708903848667,-330.48068268,0.00019726,2]
[315177566,1708903848676,-500.0,0.00019726,2]
[315177567,1708903848685,-1383.54,0.00019726,2]
[315177568,1708903848695,-3231.23979688,0.00019991,2]
[315177569,1708903848705,-572.38477132,0.00019998,2]
[315177570,1708903848715,-234.13825762,0.00019998,2]
[315177571,1708903848725,-1412.29479491,0.00019998,2]
[315177572,1708903848734,-213.02714965,0.00019998,2]
[315177573,1708903848745,-625.44826244,0.00019998,2]
[315177574,1708903848755,-677.415638,0.00019998,2]
[315177575,1708903848766,-1448.31818436,0.00019998,2]
[315177576,1708903848775,-10091.58207505,0.00019999,2]
[315177577,1708903848784,-216.50744665,0.00019999,2]
[315177578,1708903848795,-697508.29356333,0.0002,2]
[315177579,1708903849148,-500.0,0.00019452,2]
[315177580,1708903849158,-500.0,0.00019726,2]
[315177581,1708903849168,-66.67475282,0.0002,2]
[315177582,1708903849179,-135262.79158261,0.0002,2]
[315177583,1708903849190,-819.74779499,0.0002,2]
[315177625,1708904572826,-1686.7154849,0.00018193,2]
[315177626,1708904678034,232.912924,0.00018193,2]
[315177707,1708905032638,-182.18990099,0.00018899,2]
[315177709,1708905032647,-81.23557919,0.000189,2]
[315177750,1708905038569,-128.64367501,0.000189,2]
[315177751,1708905038579,-158.25912794,0.00019078,2]
[315177752,1708905038589,-154.15151216,0.00019078,2]
[315177753,1708905038598,-652.900589,0.00019177,2]
[315177755,1708905038607,-258.0,0.00019177,2]
[315177757,1708905038617,-500.37578714,0.00019178,2]
[315177759,1708905038626,-525.80205431,0.00019178,2]
[315177760,1708905038635,-243.58118859,0.00019178,2]
[315177762,1708905038644,-500.0,0.00019178,2]
[315177764,1708905038653,-500.0,0.00019178,2]
[315177765,1708905038663,-500.0,0.00019178,2]
[315177766,1708905038671,-500.0,0.00019178,2]
[315177768,1708905038680,-500.0,0.00019178,2]
[315177769,1708905038689,-500.0,0.00019178,2]
[315177770,1708905038698,-500.0,0.00019178,2]
[315177771,1708905038707,-500.0,0.00019178,2]
[315177772,1708905038716,-468.30895472,0.00019178,2]
[315177773,1708905038728,-31.69104528,0.00019178,2]
[315177774,1708905038737,-500.0,0.00019178,2]
[315177775,1708905038747,-213.91899421,0.00019178,2]
[315177776,1708905038756,-500.0,0.00019178,2]
[315177777,1708905038766,-500.0,0.00019178,2]
[315177778,1708905038775,-233.97079204,0.00019178,2]
[315177779,1708905038784,-500.0,0.00019178,2]
[315177780,1708905038793,-500.0,0.00019178,2]
[315177781,1708905038803,-722.27,0.00019178,2]
[315177782,1708905038812,-1425.67,0.00019178,2]
[315177783,1708905038821,-500.0,0.00019178,2]
[315177784,1708905038830,-500.0,0.00019178,2]
[315177785,1708905038841,-500.0,0.00019178,2]
[315177786,1708905038850,-500.3023898,0.00019178,2]
[315177787,1708905038859,-500.0,0.00019178,2]
[315177788,1708905038868,-500.0,0.00019178,2]
[315177789,1708905038877,-500.0,0.00019178,2]
[315177790,1708905038887,-500.0,0.00019178,2]
[315177792,1708905038896,-500.0,0.00019178,2]
[315177793,1708905038905,-500.0,0.00019178,2]
[315177795,1708905038914,-1000.0,0.00019178,2]
[315177796,1708905038923,-500.34794336,0.00019178,2]
[315177797,1708905038933,-500.0,0.00019178,2]
[315177798,1708905038942,-500.0,0.00019178,2]
[315177799,1708905038951,-500.0,0.00019178,2]
[315177800,1708905038959,-500.0,0.00019178,2]
[315177801,1708905038968,-500.29127605,0.00019178,2]
[315177802,1708905038977,-365.06493828,0.00019178,2]
[315177803,1708905039018,-134.93506172,0.00019178,2]
[315177804,1708905039027,-205.86532603,0.00019178,2]
[315177805,1708905039039,-290.913456,0.00019178,2]
[315177806,1708905039048,-231.37028455,0.00019178,2]
[315177807,1708905039057,-409.70428349,0.00019178,2]
[315177808,1708905039066,-500.0,0.00019178,2]
[315177809,1708905039075,-500.0,0.00019178,2]
[315177810,1708905039084,-500.62885476,0.00019178,2]
[315177811,1708905039093,-500.0,0.00019178,2]
[315177812,1708905039102,-500.0,0.00019178,2]
[315177813,1708905039111,-500.0,0.00019178,2]
[315177814,1708905039120,-500.0,0.00019178,2]
[315177815,1708905039130,-500.0,0.00019178,2]
[315177816,1708905039139,-500.0,0.00019178,2]
[315177817,1708905039148,-319.09963093,0.00019178,2]
[315177818,1708905039157,-500.50799428,0.00019178,2]
[315177819,1708905039166,-500.0,0.00019178,2]
[315177820,1708905039176,-500.0,0.00019178,2]
[315177821,1708905039186,-500.0,0.00019178,2]
[315177822,1708905039197,-500.0,0.00019178,2]
[315177823,1708905039207,-500.0,0.00019178,2]
[315177824,1708905039217,-500.0,0.00019178,2]
[315177825,1708905039227,-500.0,0.00019178,2]
[315177826,1708905039237,-500.44554136,0.00019178,2]
[315177827,1708905039248,-500.0,0.00019178,2]
[315177828,1708905039258,-500.0,0.00019178,2]
[315177829,1708905039267,-500.0,0.00019178,2]
[315177830,1708905039276,-604.0350439,0.00019178,2]
[315177831,1708905039286,-500.0,0.00019178,2]
[315177832,1708905039295,-230.13455929,0.00019178,2]
[315177833,1708905039305,-500.0,0.00019178,2]
[315177834,1708905039314,-500.0,0.00019178,2]
[315177835,1708905039323,-417.98180468,0.00019178,2]
[315177836,1708905039332,-500.0,0.00019178,2]
[315177837,1708905039342,-500.0,0.00019178,2]
[315177838,1708905039351,-500.0,0.00019178,2]
[315177839,1708905039359,-500.0,0.00019178,2]
[315177840,1708905039369,-500.0,0.00019178,2]
[315177841,1708905039378,-500.0,0.00019178,2]
[315177842,1708905039387,-500.0,0.00019178,2]
[315177843,1708905039396,-500.0,0.00019178,2]
[315177844,1708905039404,-820.72,0.00019178,2]
[315177845,1708905039413,-500.0,0.00019178,2]
[315177846,1708905039422,-500.0,0.00019178,2]
[315177847,1708905039431,-501.34536257,0.00019178,2]
[315177848,1708905039440,-617.2,0.00019178,2]
[315177849,1708905039449,-500.0,0.00019178,2]
[315177850,1708905039458,-500.0,0.00019178,2]
[315177851,1708905039467,-518.06284919,0.00019178,2]
[315177852,1708905039476,-500.0,0.00019178,2]
[315177853,1708905039485,-500.0,0.00019178,2]
[315177854,1708905039495,-500.0,0.00019178,2]
[315177855,1708905039505,-500.0,0.00019178,2]
[315177856,1708905039514,-500.0,0.00019178,2]
[315177857,1708905039523,-500.0,0.00019178,2]
[315177858,1708905039532,-500.0,0.00019178,2]
[315177859,1708905039542,-500.0,0.00019178,2]
[315177860,1708905039551,-500.0,0.00019178,2]
[315177861,1708905039561,-500.0,0.00019178,2]
[315177862,1708905039571,-500.0,0.00019178,2]
[315177863,1708905039580,-500.0,0.00019178,2]
[315177864,1708905039589,-500.0,0.00019178,2]
[315177865,1708905039599,-500.0,0.00019178,2]
[315177866,1708905039608,-417.12961598,0.00019178,2]
[315177867,1708905039617,-500.0,0.00019178,2]
[315177868,1708905039626,-500.0,0.00019178,2]
[315177869,1708905039635,-500.0,0.00019178,2]
[315177870,1708905039644,-513.27120478,0.00019178,2]
[315177871,1708905039654,-502.09679312,0.00019178,2]
[315177872,1708905039663,-500.0,0.00019178,2]
[315177873,1708905039672,-500.0,0.00019178,2]
[315177874,1708905039681,-500.0,0.00019178,2]
[315177875,1708905039690,-500.0,0.00019178,2]
[315177876,1708905039699,-243.58118859,0.00019178,2]
[315177877,1708905039708,-527.48064303,0.00019178,2]
[315177878,1708905039719,-502.54439093,0.00019178,2]
[315177879,1708905039730,-500.0,0.00019178,2]
[315177880,1708905039740,-500.0,0.00019178,2]
[315177881,1708905039749,-614.33144161,0.00019178,2]
[315177882,1708905039761,-500.0,0.00019178,2]
[315177883,1708905039771,-500.0,0.00019178,2]
[315177884,1708905039780,-500.0,0.00019178,2]
[315177885,1708905039789,-500.0,0.00019178,2]
[315177886,1708905039798,-500.0,0.00019178,2]
[315177887,1708905039807,-500.0,0.00019178,2]
[315177888,1708905039816,-500.0,0.00019178,2]
[315177889,1708905039826,-500.0,0.00019178,2]
[315177890,1708905039839,-500.0,0.00019178,2]
[315177891,1708905039850,-500.0,0.00019178,2]
[315177892,1708905039860,-500.0,0.00019178,2]
[315177893,1708905039869,-500.0,0.00019178,2]
[315177894,1708905039878,-414.64097226,0.00019178,2]
[315177895,1708905039887,-500.0,0.00019178,2]
[315177896,1708905039897,-500.0,0.00019178,2]
[315177897,1708905039906,-500.0,0.00019178,2]
[315177898,1708905039915,-500.0,0.00019178,2]
[315177899,1708905039925,-500.0,0.00019178,2]
[315177900,1708905039934,-500.0,0.00019178,2]
[315177901,1708905039943,-500.0,0.00019178,2]
[315177902,1708905039952,-2101.54,0.00019178,2]
[315177903,1708905039961,-1308.09,0.00019178,2]
[315177904,1708905039971,-500.0,0.00019178,2]
[315177905,1708905039980,-500.0,0.00019178,2]
[315177906,1708905039990,-500.0,0.00019178,2]
[315177907,1708905039999,-155.87924966,0.00019178,2]
[315177908,1708905040008,-500.0,0.00019178,2]
[315177909,1708905040017,-500.0,0.00019178,2]
[315177910,1708905040026,-500.0,0.00019178,2]
[315177911,1708905040036,-631.02090704,0.00019178,2]
[315177912,1708905040045,-500.0,0.00019178,2]
[315177913,1708905040054,-500.0,0.00019178,2]
[315177914,1708905040063,-1643.7,0.00019178,2]
[315177915,1708905040073,-500.0,0.00019178,2]
[315177916,1708905040082,-500.0,0.00019178,2]
[315177917,1708905040093,-500.0,0.00019178,2]
[315177918,1708905040103,-500.0,0.00019178,2]
[315177919,1708905040113,-500.0,0.00019178,2]
[315177921,1708905040217,-500.0,0.00019178,2]
[315177922,1708905040226,-500.0,0.00019178,2]
[315177923,1708905040236,-500.0,0.00019178,2]
[315177924,1708905040245,-562.32781507,0.00019178,2]
[315177925,1708905040255,-500.0,0.00019178,2]
[315177926,1708905040267,-500.0,0.00019178,2]
[315177927,1708905040276,-500.0,0.00019178,2]
[315177928,1708905040285,-500.0,0.00019178,2]
[315177929,1708905040294,-451.64073041,0.00019178,2]
[315177930,1708905040303,-500.0,0.00019178,2]
[315177931,1708905040312,-500.52544546,0.00019178,2]
[315177932,1708905040322,-500.0,0.00019178,2]
[315177933,1708905040331,-500.0,0.00019178,2]
[315177934,1708905040341,-647.50116398,0.00019178,2]
[315177935,1708905040351,-500.0,0.00019178,2]
[315177936,1708905040361,-500.0,0.00019178,2]
[315177937,1708905040370,-500.0,0.00019178,2]
[315177938,1708905040380,-500.0,0.00019178,2]
[315177939,1708905040389,-698.4,0.00019178,2]
[315177940,1708905040398,-500.0,0.00019178,2]
[315177941,1708905040407,-500.0,0.00019178,2]
[315177942,1708905040416,-500.0,0.00019178,2]
[315177943,1708905040427,-500.0,0.00019178,2]
[315177944,1708905040437,-500.0,0.00019178,2]
[315177945,1708905040446,-500.0,0.00019178,2]
[315177946,1708905040455,-500.0,0.00019178,2]
[315177947,1708905040464,-500.0,0.00019178,2]
[315177948,1708905040474,-500.0,0.00019178,2]
[315177949,1708905040483,-1799.5,0.00019178,2]
[315177950,1708905040492,-242.68643085,0.00019178,2]
[315177951,1708905040502,-935.75,0.00019178,2]
[315177952,1708905040511,-500.0,0.00019178,2]
[315177953,1708905040520,-500.0,0.00019178,2]
[315177954,1708905040530,-500.0,0.00019178,2]
[315177955,1708905040540,-500.0,0.00019178,2]
[315177956,1708905040549,-500.0,0.00019178,2]
[315177957,1708905040558,-500.0,0.00019178,2]
[315177958,1708905040568,-500.0,0.00019178,2]
[315177959,1708905040577,-224.21370726,0.00019178,2]
[315177960,1708905040586,-500.0,0.00019178,2]
[315177961,1708905040595,-500.0,0.00019178,2]
[315177962,1708905040605,-500.0,0.00019178,2]
[315177963,1708905040615,-170.10351684,0.00019178,2]
[315177964,1708905040624,-500.0,0.00019178,2]
[315177965,1708905040634,-500.0,0.00019178,2]
[315177966,1708905040644,-500.0,0.00019178,2]
[315177967,1708905040653,-720.77,0.00019178,2]
[315177968,1708905040663,-500.0,0.00019178,2]
[315177969,1708905040673,-396.36419202,0.00019178,2]
[315177970,1708905040683,-500.0,0.00019178,2]
[315177971,1708905040692,-500.0,0.00019178,2]
[315177972,1708905040702,-205.43376026,0.00019178,2]
[315177973,1708905040713,-500.0,0.00019178,2]
[315177974,1708905040723,-500.0,0.00019178,2]
[315177975,1708905040734,-500.0,0.00019178,2]
[315177976,1708905040743,-500.0,0.00019178,2]
[315177977,1708905040756,-500.0,0.00019178,2]
[315177978,1708905040770,-500.0,0.00019178,2]
[315177979,1708905040780,-500.0,0.00019178,2]
[315177980,1708905040789,-500.28098857,0.00019178,2]
[315177981,1708905040798,-500.0,0.00019178,2]
[315177982,1708905040808,-500.0,0.00019178,2]
[315177983,1708905040818,-500.0,0.00019178,2]
[315177984,1708905040827,-500.0,0.00019178,2]
[315177985,1708905040838,-368.47185558,0.00019178,2]
[315177986,1708905040847,-500.0,0.00019178,2]
[315177987,1708905040857,-11294.05,0.00019178,2]
[315177988,1708905040867,-500.0,0.00019178,2]
[315177989,1708905040876,-500.0,0.00019178,2]
[315177990,1708905040885,-500.0,0.00019178,2]
[315177991,1708905040894,-500.0,0.00019178,2]
[315177992,1708905040903,-1834.68,0.00019178,2]
[315177993,1708905040912,-177.06876316,0.00019178,2]
[315177994,1708905040921,-500.0,0.00019178,2]
[315177995,1708905040931,-500.0,0.00019178,2]
[315177996,1708905040941,-200.0,0.00019178,2]
[315177997,1708905040950,-2773.39,0.00019178,2]
[315177998,1708905040959,-500.0,0.00019178,2]
[315177999,1708905040969,-500.0,0.00019178,2]
[315178000,1708905040978,-500.0,0.00019178,2]
[315178001,1708905040987,-500.0,0.00019178,2]
[315178002,1708905040996,-500.0,0.00019178,2]
[315178003,1708905041005,-3995.5,0.00019178,2]
[315178004,1708905041013,-500.0,0.00019178,2]
[315178005,1708905041021,-506.70986665,0.00019178,2]
[315178006,1708905041028,-500.0,0.00019178,2]
[315178007,1708905041036,-500.0,0.00019178,2]
[315178008,1708905041044,-500.0,0.00019178,2]
[315178009,1708905041053,-609.6,0.00019178,2]
[315178010,1708905041062,-243.58118859,0.00019178,2]
[315178011,1708905041071,-500.0,0.00019178,2]
[315178012,1708905041080,-500.0,0.00019178,2]
[315178013,1708905041089,-500.0,0.00019178,2]
[315178014,1708905041099,-500.0,0.00019178,2]
[315178015,1708905041108,-1000.0,0.00019178,2]
[315178016,1708905041119,-1912.56,0.00019178,2]
[315178017,1708905041129,-500.0,0.00019178,2]
[315178018,1708905041139,-500.0,0.00019178,2]
[315178019,1708905041149,-500.0,0.00019178,2]
[315178020,1708905041158,-2620.14,0.00019178,2]
[315178021,1708905041168,-500.0,0.00019178,2]
[315178022,1708905041178,-500.0,0.00019178,2]
[315178023,1708905041188,-506.34387473,0.00019178,2]
[315178024,1708905041198,-500.0,0.00019178,2]
[315178025,1708905041207,-500.0,0.00019178,2]
[315178026,1708905041217,-1998.21,0.00019178,2]
[315178027,1708905041226,-542.65859334,0.00019178,2]
[315178028,1708905041238,-500.0,0.00019178,2]
[315178029,1708905041252,-500.0,0.00019178,2]
[315178030,1708905041267,-500.0,0.00019178,2]
[315178031,1708905041280,-500.0,0.00019178,2]
[315178032,1708905041291,-500.0,0.00019178,2]
[315178033,1708905041301,-500.0,0.00019178,2]
[315178034,1708905041314,-500.0,0.00019178,2]
[315178035,1708905041327,-500.0,0.00019178,2]
[315178036,1708905041340,-20576.55,0.00019178,2]
[315178037,1708905041353,-616.26,0.00019178,2]
[315178038,1708905041366,-500.9168553,0.00019178,2]
[315178039,1708905041380,-500.0,0.00019178,2]
[315178040,1708905041391,-572.52818426,0.00019178,2]
[315178041,1708905041401,-500.0,0.00019178,2]
[315178042,1708905041428,-500.0,0.00019178,2]
[315178043,1708905041444,-500.0,0.00019178,2]
[315178044,1708905041458,-500.0,0.00019178,2]
[315178045,1708905041470,-500.0,0.00019178,2]
[315178046,1708905041483,-500.0,0.00019178,2]
[315178047,1708905041498,-500.0,0.00019178,2]
[315178049,1708905041513,-500.0,0.00019178,2]
[315178050,1708905041524,-500.0,0.00019178,2]
[315178051,1708905041534,-500.0,0.00019178,2]
[315178052,1708905041548,-500.0,0.00019178,2]
[315178053,1708905041563,-500.0,0.00019178,2]
[315178054,1708905041575,-500.0,0.00019178,2]
[315178055,1708905041592,-500.0,0.00019178,2]
[315178056,1708905041608,-500.0,0.00019178,2]
[315178058,1708905041621,-268.39371739,0.00019178,2]
[315178059,1708905041636,-500.0,0.00019178,2]
[315178060,1708905041650,-500.0,0.00019178,2]
[315178061,1708905041665,-500.0,0.00019178,2]
[315178063,1708905041680,-500.0,0.00019178,2]
[315178065,1708905041694,-1634.14,0.00019178,2]
[315178067,1708905041706,-500.0,0.00019178,2]
[315178068,1708905041719,-500.0,0.00019178,2]
[315178069,1708905041729,-500.0,0.00019178,2]
[315178071,1708905041740,-500.0,0.00019178,2]
[315178072,1708905041751,-500.0,0.00019178,2]
[315178073,1708905041764,-7604.98,0.00019178,2]